fUSD/lending_fUSD_20260313
["ID","MTS","AMOUNT","RATE_DAILY","PERIOD"]
[408311332,1773389431945,-300.0,0.00014165,2]
[408311333,1773389431954,-788.27689959,0.00014166,2]
[408311334,1773389431966,-465.47381099,0.00014166,2]
[408311336,1773389431977,-1654.5115835,0.00014166,2]
[408311338,1773389431987,-164.22,0.00014242,2]
[408311340,1773389431998,-4243.85332309,0.0001439,2]
[408311342,1773389432008,-1134.85,0.00014763,2]
[408311344,1773389432018,-300.0,0.00015498,2]
[408311346,1773389432027,-500.0,0.00015499,2]
[408311347,1773389432037,-5000.0,0.00015499,2]
[408311348,1773389432047,-250.0,0.00015499,2]
[408311349,1773389432057,-300.0,0.00015499,2]
[408311350,1773389432067,-250.0,0.00015499,2]
[408311351,1773389432078,-600.0,0.00015499,2]
[408311353,1773389432089,-305.70426919,0.00015499,2]
[408311355,1773389432097,-269.62516553,0.00015499,2]
[408311356,1773389432106,-5000.0,0.00015499,2]
[408311357,1773389432116,-342.34757849,0.00015499,2]
[408311358,1773389432125,-223.27474466,0.00015499,2]
[408311359,1773389432134,-500.0,0.00015499,2]
[408311360,1773389432143,-600.0,0.00015499,2]
[408311361,1773389432153,-300.0,0.00015499,2]
[408311362,1773389432167,-600.0,0.00015499,2]
[408311363,1773389432177,-420.0,0.00015516,2]
[408311364,1773389432187,-480.0,0.0001554,2]
[408311365,1773389432197,-970.25,0.00015548,2]
[408311366,1773389432207,-81451.6453,0.00015721,2]
[408311367,1773389432217,-498.814,0.00015814,2]
[408311368,1773389432227,-35561.3651677,0.00015821,2]
[408311369,1773389432236,-164.22,0.00015824,2]
[408311370,1773389432247,-5000.00303851,0.000162,5]
[408311371,1773389432256,-152.74,0.00016325,2]
[408311372,1773389432269,-166.68,0.00016473,2]
[408311373,1773389432278,-477.26,0.000166,7]
[408311374,1773389432288,-315.0,0.0001663,2]
[408311375,1773389432298,-240.0,0.00016996,2]
[408311376,1773389432308,-6756.038,0.00017118,2]
[408311377,1773389432322,-657.86924704,0.00017118,2]
[408311378,1773389432332,-4741.83653757,0.00017118,2]
[408311379,1773389432341,-171.68148974,0.00017118,2]
[408311380,1773389432351,-160.0,0.00017138,2]
[408311381,1773389432361,-500.0,0.00017217,2]
[408311382,1773389432371,-172.27490342,0.00017217,2]
[408311383,1773389432602,-509.6882342,0.00017217,2]
[408311384,1773389432612,-171840.43382359,0.00017218,2]
[408311385,1773389432624,-12582.31513972,0.00017218,2]
[408311389,1773389437899,-956.20298855,0.00017218,2]
[408311390,1773389437983,-294.54065653,0.00017218,2]
[408311406,1773389440008,-1086703.65829161,0.00017218,2]
[408311407,1773389440017,-4146.04,0.00017218,2]
[408311408,1773389440030,-163.3177747,0.00017273,2]
[408311409,1773389440040,-501.8819545,0.00017273,2]
[408311410,1773389440050,-500.0,0.00017273,2]
[408311411,1773389440060,-500.0,0.00017273,2]
[408311412,1773389440070,-500.0,0.00017273,2]
[408311413,1773389440079,-500.0,0.00017273,2]
[408311414,1773389440089,-500.0,0.00017273,2]
[408311415,1773389440098,-500.0,0.00017273,2]
[408311416,1773389440108,-500.0,0.00017273,2]
[408311417,1773389440119,-500.0,0.00017273,2]
[408311418,1773389440129,-923.0,0.00017398,2]
[408311419,1773389440139,-1350.051,0.00017398,2]
[408311420,1773389440148,-2463.0,0.00017398,2]
[408311421,1773389440158,-3753.0,0.00017398,2]
[408311422,1773389440167,-164.22,0.00017406,2]
[408311423,1773389440177,-657.86924702,0.00017427,2]
[408311424,1773389440187,-4741.83653754,0.00017427,2]
[408311425,1773389440196,-583.0,0.00017453,2]
[408311426,1773389440206,-2000.0,0.00017502,2]
[408311427,1773389440215,-800.0,0.00017502,2]
[408311428,1773389440224,-1284.974,0.00017541,2]
[408311429,1773389440234,-657.86924702,0.00017736,2]
[408311430,1773389440244,-4741.83653754,0.00017736,2]
[408311431,1773389440253,-500.0,0.00017821,2]
[408311432,1773389440262,-363.51959648,0.00017821,2]
[408311433,1773389440272,-1000.0,0.00017821,2]
[408311434,1773389440281,-355.2077991,0.00017917,2]
[408311435,1773389440291,-800.0,0.0001794,2]
[408311436,1773389440300,-3158.97101355,0.00018,2]
[408311437,1773389440310,-657.86924702,0.00018045,2]
[408311438,1773389440323,-4741.83653754,0.00018045,2]
[408311439,1773389440333,-657.86924702,0.00018354,2]
[408311440,1773389440342,-4741.83653754,0.00018354,2]
[408311441,1773389440353,-500.0,0.00018368,2]
[408311442,1773389440362,-800.0,0.00018377,2]
[408311443,1773389440371,-252.92178723,0.00018531,2]
[408311444,1773389440381,-657.86924702,0.00018664,2]
[408311445,1773389440392,-4741.83653754,0.00018664,2]
[408311446,1773389440402,-800.0,0.00018815,2]
[408311447,1773389440411,-14225.48,0.00018959,2]
[408311448,1773389440425,-657.86924702,0.00018973,2]
[408311449,1773389440434,-4741.83653754,0.00018973,2]
[408311450,1773389440443,-154.91,0.00018989,2]
[408311451,1773389440453,-324.93,0.00018989,2]
[408311452,1773389440462,-164.22,0.00018989,2]
[408311453,1773389440471,-166.68,0.00019192,2]
[408311454,1773389440480,-1633.16269666,0.000192,2]
[408311455,1773389440489,-729.0,0.000192,2]
[408311456,1773389440498,-800.0,0.00019253,2]
[408311457,1773389440508,-657.86924702,0.00019282,2]
[408311458,1773389440517,-4741.83653754,0.00019282,2]
[408311459,1773389440527,-4762.52,0.00019339,2]
[408311460,1773389440537,-29999.99,0.00019339,2]
[408311461,1773389440546,-498.65,0.00019382,2]
[408311462,1773389440556,-657.86924702,0.00019591,2]
[408311463,1773389440565,-4741.83653754,0.00019591,2]
[408311464,1773389440574,-271.43121445,0.000196,2]
[408311465,1773389440583,-168.0,0.00019797,2]
[408311466,1773389440593,-1000.0,0.000199,2]
[408311467,1773389440603,-1000.0,0.000199,2]
[408311468,1773389440613,-1000.0,0.000199,2]
[408311469,1773389440622,-1000.0,0.000199,2]
[408311470,1773389440631,-1000.0,0.000199,2]
[408311471,1773389440641,-1000.0,0.000199,2]
[408311472,1773389440651,-1000.0,0.000199,2]
[408311473,1773389440660,-1000.0,0.000199,2]
[408311474,1773389440669,-1000.0,0.000199,2]
[408311475,1773389440678,-1000.0,0.000199,2]
[408311476,1773389440687,-683.012,0.000199,2]
[408311477,1773389440697,-657.86924702,0.000199,2]
[408311478,1773389440706,-4741.83653754,0.000199,2]
[408311479,1773389440715,-171.68148974,0.000199,2]
[408311480,1773389440725,-6624.68974895,0.000199,2]
[408311481,1773389440734,-168.0,0.00019912,2]
[408311482,1773389440743,-324.93,0.00019938,2]
[408311483,1773389440753,-500.0,0.00019973,2]
[408311484,1773389440762,-500.0,0.00019973,2]
[408311485,1773389440771,-7589.0,0.00019973,2]
[408311486,1773389440783,-500.0,0.00019973,2]
[408311487,1773389440792,-500.0,0.00019973,2]
[408311488,1773389440802,-500.0,0.00019973,2]
[408311489,1773389440811,-500.0,0.00019973,2]
[408311490,1773389440823,-500.0,0.00019973,2]
[408311491,1773389440833,-419.84618409,0.00019973,2]
[408311492,1773389440843,-500.0,0.00019973,2]
[408311493,1773389440853,-500.0,0.00019973,2]
[408311494,1773389440864,-500.0,0.00019973,2]
[408311495,1773389440874,-300.0,0.00019999,2]
[408311496,1773389440883,-672.34663762,0.00019999,2]
[408311497,1773389440893,-165.644,0.00019999,2]
[408311498,1773389440903,-3167359.79822335,0.0002,2]
[408311509,1773389443114,-423.569,0.00017398,2]
[408311510,1773389443125,-9662.43100002,0.0002,2]
[408311511,1773389443155,-824.25795494,0.0002,2]
[408311515,1773389445796,-140716.04109907,0.0002,2]
[408311516,1773389445807,-2367.114256,0.0002,2]
[408311517,1773389446025,-50504.68109549,0.0002,2]
[408311520,1773389484384,798.0,0.0003287,120]
[408311521,1773389485178,215.0,0.0003287,120]
[408311522,1773389487234,309.0,0.0003287,120]
[408311524,1773389545498,757.0,0.0003287,120]
[408311525,1773389546318,1574.81035441,0.0003287,120]
[408311526,1773389548367,174.4849947,0.0003287,120]
[408311527,1773389583051,559.91,0.00032877,120]
[408311528,1773389642294,1500.0,0.00032877,120]
[408311532,1773389820979,2235.99268506,0.0003287,120]
[408311533,1773389829271,300.0,0.00032877,120]
[408311534,1773389846216,200.0,0.00032877,120]
[408311689,1773390632063,-150.28029192,0.00015684,2]
[408311690,1773390632073,-1010.4349,0.00015721,2]
[408311691,1773390632083,-166.66,0.00016627,2]
[408311692,1773390632093,-465.84,0.000168,7]
[408311693,1773390632102,-150.28029192,0.00016853,2]
[408311694,1773390632112,-166.66,0.00016977,2]
[408311695,1773390632121,-1429.18118736,0.00017009,2]
[408311696,1773390632130,-160.88,0.00017117,2]
[408311697,1773390632140,-94.70780092,0.00017118,2]
[408311698,1773390632151,-905.29219908,0.00017118,2]
[408311699,1773390632161,-300.0,0.00017216,2]
[408311700,1773390632170,-300.0,0.00017216,2]
[408311701,1773390632180,-1200.0,0.00017216,2]
[408311702,1773390632190,-500.0,0.00017217,2]
[408311703,1773390632199,-500.0,0.00017217,2]
[408311704,1773390632209,-507.50732285,0.00017217,2]
[408311705,1773390632219,-550.0,0.00017251,2]
[408311706,1773390632228,-195.0,0.00017252,2]
[408311707,1773390632238,-195.0,0.00017252,2]
[408311708,1773390632247,-195.0,0.00017252,2]
[408311709,1773390632258,-195.0,0.00017252,2]
[408311710,1773390632269,-195.0,0.00017252,2]
[408311712,1773390632278,-2500.0,0.00017252,2]
[408311714,1773390632287,-2500.0,0.00017252,2]
[408311716,1773390632296,-2500.0,0.00017252,2]
[408311717,1773390632305,-2500.0,0.00017252,2]
[408311719,1773390632315,-2500.0,0.00017252,2]
[408311721,1773390632324,-250.0,0.00017252,2]
[408311723,1773390632334,-727.25673477,0.00017252,2]
[408311725,1773390632345,-299.23478,0.00017252,2]
[408311727,1773390632357,-263.98909323,0.00017252,2]
[408311729,1773390632366,-250.0,0.00017252,2]
[408311730,1773390632375,-229.49017697,0.00017252,2]
[408311738,1773390633396,-70.66894743,0.00017252,2]
[408311739,1773390633405,-407.56,0.00017293,2]
[408311740,1773390633414,-300.38531498,0.00017293,2]
[408311741,1773390633424,-600.0,0.00017293,2]
[408311742,1773390633433,-250.0,0.00017293,2]
[408311743,1773390633442,-166.66,0.00017327,2]
[408311744,1773390633451,-200.0,0.0001739,2]
[408311745,1773390633460,-363.51959648,0.000174,2]
[408311746,1773390633469,-372.58747889,0.000174,2]
[408311747,1773390633479,-500.0,0.000174,2]
[408311748,1773390633489,-242.30800925,0.00017502,2]
[408311749,1773390633498,-4399.57,0.00017502,2]
[408311750,1773390633508,-200.0,0.00017502,2]
[408311751,1773390633517,-3240.0,0.00017502,2]
[408311752,1773390633526,-407.56,0.00017567,2]
[408311753,1773390633535,-166.66,0.00017677,2]
[408311754,1773390633546,-14225.48,0.00017753,2]
[408311755,1773390633556,-200.0,0.00017794,2]
[408311756,1773390633565,-500.0,0.00017794,2]
[408311757,1773390633574,-500.0,0.00017794,2]
[408311758,1773390633583,-151.0,0.00017794,2]
[408311759,1773390633592,-500.0,0.00017794,2]
[408311760,1773390633602,-151.0,0.00017794,2]
[408311761,1773390633611,-500.0,0.00017794,2]
[408311762,1773390633621,-151.0,0.00017794,2]
[408311763,1773390633630,-151.0,0.00017794,2]
[408311764,1773390633640,-500.0,0.00017794,2]
[408311765,1773390633650,-151.0,0.00017794,2]
[408311766,1773390633659,-500.0,0.00017794,2]
[408311767,1773390633668,-151.0,0.00017794,2]
[408311768,1773390633678,-500.0,0.00017794,2]
[408311769,1773390633690,-151.0,0.00017794,2]
[408311770,1773390633701,-500.0,0.00017794,2]
[408311771,1773390633711,-151.0,0.00017794,2]
[408311772,1773390633720,-500.0,0.00017794,2]
[408311773,1773390633731,-151.0,0.00017794,2]
[408311774,1773390633740,-500.0,0.00017794,2]
[408311775,1773390633749,-151.0,0.00017794,2]
[408311776,1773390633758,-534.14710025,0.00017794,2]
[408311777,1773390633769,-151.0,0.00017794,2]
[408311778,1773390633778,-151.0,0.00017794,2]
[408311779,1773390633787,-151.0,0.00017794,2]
[408311780,1773390633797,-151.0,0.00017794,2]
[408311781,1773390633806,-151.0,0.00017794,2]
[408311782,1773390633815,-151.0,0.00017794,2]
[408311783,1773390633826,-151.0,0.00017794,2]
[408311784,1773390633835,-151.0,0.00017794,2]
[408311785,1773390633844,-151.0,0.00017794,2]
[408311786,1773390633854,-151.0,0.00017794,2]
[408311787,1773390633863,-151.0,0.00017794,2]
[408311788,1773390633872,-151.0,0.00017794,2]
[408311789,1773390633881,-151.0,0.00017794,2]
[408311790,1773390633891,-151.0,0.00017794,2]
[408311791,1773390633901,-151.0,0.00017794,2]
[408311792,1773390633910,-151.0,0.00017794,2]
[408311793,1773390633919,-151.0,0.00017794,2]
[408311794,1773390633928,-151.0,0.00017794,2]
[408311795,1773390633937,-151.0,0.00017794,2]
[408311796,1773390633946,-151.0,0.00017794,2]
[408311797,1773390633955,-154.94742693,0.00017794,2]
[408311798,1773390633963,-324.10652801,0.00017794,2]
[408311799,1773390633972,-16664.25,0.00017804,2]
[408311800,1773390633982,-407.56,0.00017841,2]
[408311801,1773390633992,-150.28029192,0.00018022,2]
[408311802,1773390634001,-166.66,0.00018027,2]
[408311803,1773390634010,-407.56,0.00018115,2]
[408311804,1773390634019,-1280.0,0.00018132,2]
[408311805,1773390634028,-1350.051,0.00018132,2]
[408311806,1773390634038,-923.0,0.00018132,2]
[408311807,1773390634047,-2463.0,0.00018132,2]
[408311808,1773390634056,-1043.0,0.00018132,2]
[408311809,1773390634074,-501.8819545,0.000182,2]
[408311810,1773390634085,-1000.0,0.00018225,2]
[408311811,1773390634095,-498.66426008,0.00018238,2]
[408311812,1773390634105,-500.0,0.00018257,2]
[408311813,1773390634115,-935.0,0.00018355,2]
[408311814,1773390634124,-166.66,0.00018377,2]
[408311815,1773390634133,-407.6,0.00018389,2]
[408311816,1773390634142,-1999.0,0.00018499,2]
[408311817,1773390634152,-1450.16766256,0.00018569,2]
[408311818,1773390634161,-1000.0,0.00018773,2]
[408311819,1773390634171,-500.0,0.000188,2]
[408311820,1773390634180,-500.0,0.00018805,2]
[408311821,1773390634190,-500.0,0.00018821,2]
[408311822,1773390634199,-500.0,0.00018821,2]
[408311823,1773390634209,-500.0,0.00018821,2]
[408311824,1773390634219,-500.0,0.00018821,2]
[408311825,1773390634228,-500.0,0.00018821,2]
[408311826,1773390634238,-500.0,0.00018821,2]
[408311827,1773390634247,-1680.0,0.00018893,2]
[408311828,1773390634256,-9000.0,0.00018999,2]
[408311829,1773390634266,-500.0,0.00018999,2]
[408311830,1773390634276,-250.0,0.00018999,2]
[408311831,1773390634286,-250.0,0.00018999,2]
[408311832,1773390634295,-250.0,0.00018999,2]
[408311833,1773390634305,-250.0,0.00018999,2]
[408311834,1773390634315,-250.0,0.00018999,2]
[408311835,1773390634324,-1500.0,0.00018999,2]
[408311836,1773390634335,-279.33639356,0.00018999,2]
[408311837,1773390634346,-1500.0,0.00018999,2]
[408311838,1773390634355,-1500.0,0.00018999,2]
[408311839,1773390634364,-1500.0,0.00018999,2]
[408311840,1773390634374,-250.0,0.00018999,2]
[408311841,1773390634383,-1500.0,0.00018999,2]
[408311842,1773390634394,-243.57435302,0.00018999,2]
[408311843,1773390634402,-1500.0,0.00018999,2]
[408311844,1773390634411,-1500.0,0.00018999,2]
[408311845,1773390634420,-1500.0,0.00018999,2]
[408311846,1773390634430,-1500.0,0.00018999,2]
[408311847,1773390634440,-1500.0,0.00018999,2]
[408311848,1773390634449,-578.20924308,0.00018999,2]
[408311849,1773390634458,-1500.0,0.00018999,2]
[408311850,1773390634467,-151.0,0.00018999,2]
[408311851,1773390634478,-174.61919141,0.00018999,2]
[408311852,1773390634487,-200.0,0.00018999,2]
[408311853,1773390634497,-500.0,0.00018999,2]
[408311854,1773390634506,-500.0,0.00018999,2]
[408311855,1773390634516,-500.0,0.00018999,2]
[408311856,1773390634526,-500.0,0.00018999,2]
[408311857,1773390634535,-500.0,0.00018999,2]
[408311858,1773390634545,-341.3952988,0.00019027,2]
[408311859,1773390634554,-1999.0,0.00019047,2]
[408311860,1773390634563,-9048.3752957,0.00019054,2]
[408311861,1773390634573,-500.0,0.00019054,2]
[408311862,1773390634583,-151.0,0.00019054,2]
[408311863,1773390634592,-500.0,0.00019109,2]
[408311864,1773390634602,-151.0,0.00019109,2]
[408311865,1773390634611,-500.0,0.00019164,2]
[408311866,1773390634624,-151.0,0.00019164,2]
[408311867,1773390634633,-150.0,0.00019178,2]
[408311868,1773390634643,-150.0,0.00019178,2]
[408311869,1773390634652,-500.0,0.00019178,2]
[408311870,1773390634662,-150.0,0.00019178,2]
[408311871,1773390634671,-1451.0,0.00019178,2]
[408311872,1773390634680,-500.0,0.00019219,2]
[408311873,1773390634694,-151.0,0.00019219,2]
[408311874,1773390634703,-150.0,0.00019233,2]
[408311875,1773390634713,-150.0,0.00019233,2]
[408311876,1773390634722,-505.28661314,0.00019233,2]
[408311877,1773390634734,-5842.24410517,0.00019238,2]
[408311878,1773390634744,-3829.94729665,0.00019239,2]
[408311879,1773390634753,-500.0,0.00019274,2]
[408311880,1773390634765,-151.0,0.00019274,2]
[408311881,1773390634774,-150.0,0.00019288,2]
[408311882,1773390634784,-5842.24410513,0.00019312,2]
[408311883,1773390634793,-500.0,0.00019329,2]
[408311884,1773390634802,-151.0,0.00019329,2]
[408311885,1773390634811,-3829.94729659,0.00019333,2]
[408311886,1773390634821,-541.83718161,0.00019338,2]
[408311887,1773390634830,-500.0,0.00019338,2]
[408311888,1773390634839,-500.0,0.00019338,2]
[408311889,1773390634848,-500.0,0.00019338,2]
[408311890,1773390634857,-462.51528708,0.00019338,2]
[408311891,1773390634867,-500.0,0.00019338,2]
[408311892,1773390634876,-500.0,0.00019338,2]
[408311893,1773390634886,-601.10612814,0.00019338,2]
[408311894,1773390634896,-500.0,0.00019338,2]
[408311895,1773390634906,-359.43539204,0.00019338,2]
[408311896,1773390634915,-500.0,0.00019338,2]
[408311897,1773390634924,-409.90762439,0.00019338,2]
[408311898,1773390634933,-500.0,0.00019338,2]
[408311899,1773390634943,-500.0,0.00019338,2]
[408311900,1773390634952,-500.0,0.00019338,2]
[408311901,1773390634961,-500.0,0.00019338,2]
[408311902,1773390634970,-500.0,0.00019338,2]
[408311903,1773390634980,-500.0,0.00019338,2]
[408311904,1773390634989,-500.0,0.00019338,2]
[408311905,1773390634999,-500.0,0.00019338,2]
[408311906,1773390635012,-500.0,0.00019338,2]
[408311907,1773390635022,-500.0,0.00019338,2]
[408311908,1773390635032,-500.0,0.00019338,2]
[408311909,1773390635042,-500.0,0.00019338,2]
[408311910,1773390635051,-500.0,0.00019338,2]
[408311911,1773390635062,-500.0,0.00019338,2]
[408311912,1773390635071,-500.0,0.00019338,2]
[408311913,1773390635081,-500.0,0.00019338,2]
[408311914,1773390635090,-500.0,0.00019338,2]
[408311915,1773390635100,-500.0,0.00019338,2]
[408311916,1773390635110,-500.0,0.00019338,2]
[408311917,1773390635120,-500.0,0.00019338,2]
[408311918,1773390635131,-500.0,0.00019338,2]
[408311919,1773390635140,-500.0,0.00019338,2]
[408311920,1773390635151,-500.0,0.00019338,2]
[408311921,1773390635161,-500.0,0.00019338,2]
[408311922,1773390635171,-500.0,0.00019338,2]
[408311923,1773390635180,-500.0,0.00019338,2]
[408311924,1773390635190,-500.0,0.00019338,2]
[408311925,1773390635200,-500.0,0.00019338,2]
[408311926,1773390635209,-500.0,0.00019338,2]
[408311927,1773390635219,-500.0,0.00019338,2]
[408311928,1773390635228,-500.0,0.00019338,2]
[408311929,1773390635238,-500.0,0.00019338,2]
[408311930,1773390635248,-500.0,0.00019338,2]
[408311931,1773390635258,-500.0,0.00019338,2]
[408311932,1773390635267,-500.0,0.00019338,2]
[408311933,1773390635277,-500.0,0.00019338,2]
[408311934,1773390635286,-357.86480296,0.00019338,2]
[408311935,1773390635296,-500.0,0.00019338,2]
[408311936,1773390635305,-500.0,0.00019338,2]
[408311937,1773390635314,-500.0,0.00019338,2]
[408311938,1773390635324,-500.0,0.00019338,2]
[408311939,1773390635333,-500.0,0.00019338,2]
[408311940,1773390635343,-500.0,0.00019338,2]
[408311941,1773390635352,-500.0,0.00019338,2]
[408311942,1773390635361,-500.0,0.00019338,2]
[408311943,1773390635371,-500.0,0.00019338,2]
[408311944,1773390635380,-500.0,0.00019338,2]
[408311945,1773390635389,-500.0,0.00019338,2]
[408311946,1773390635399,-500.0,0.00019338,2]
[408311947,1773390635408,-500.0,0.00019338,2]
[408311948,1773390635418,-550.0,0.00019338,2]
[408311949,1773390635427,-500.0,0.00019338,2]
[408311950,1773390635437,-500.0,0.00019338,2]
[408311951,1773390635447,-500.0,0.00019338,2]
[408311952,1773390635457,-500.0,0.00019338,2]
[408311953,1773390635467,-500.0,0.00019338,2]
[408311954,1773390635477,-500.0,0.00019338,2]
[408311955,1773390635487,-500.0,0.00019338,2]
[408311956,1773390635496,-500.0,0.00019338,2]
[408311957,1773390635506,-500.0,0.00019338,2]
[408311958,1773390635516,-500.0,0.00019338,2]
[408311959,1773390635526,-500.0,0.00019338,2]
[408311960,1773390635536,-500.0,0.00019338,2]
[408311961,1773390635547,-500.0,0.00019338,2]
[408311962,1773390635558,-500.0,0.00019338,2]
[408311963,1773390635568,-500.0,0.00019338,2]
[408311964,1773390635578,-500.0,0.00019338,2]
[408311965,1773390635588,-500.0,0.00019338,2]
[408311966,1773390635598,-500.0,0.00019338,2]
[408311967,1773390635608,-500.0,0.00019338,2]
[408311968,1773390635617,-500.0,0.00019338,2]
[408311969,1773390635627,-500.0,0.00019338,2]
[408311970,1773390635637,-250.0,0.00019338,2]
[408311971,1773390635647,-63311.55,0.00019339,2]
[408311972,1773390635657,-872.6,0.00019339,2]
[408311973,1773390635666,-8007.63,0.00019339,2]
[408311974,1773390635676,-150.99,0.00019339,2]
[408311975,1773390635687,-9999.99,0.00019339,2]
[408311976,1773390635699,-2992.24,0.00019339,2]
[408311977,1773390635709,-29999.99,0.00019339,2]
[408311978,1773390635720,-4762.52,0.00019339,2]
[408311979,1773390635730,-150.0,0.00019342,2]
[408311980,1773390635740,-1000.0,0.00019348,2]
[408311981,1773390635750,-1000.0,0.00019369,2]
[408311982,1773390635760,-1000.0,0.00019369,2]
[408311983,1773390635772,-1000.0,0.00019369,2]
[408311984,1773390635782,-500.0,0.00019384,2]
[408311985,1773390635792,-151.0,0.00019384,2]
[408311986,1773390635802,-5842.24410513,0.00019385,2]
[408311987,1773390635811,-150.0,0.00019397,2]
[408311988,1773390635821,-3829.94729659,0.00019428,2]
[408311989,1773390635831,-500.0,0.00019439,2]
[408311990,1773390635841,-151.0,0.00019439,2]
[408311991,1773390635851,-250.0,0.00019452,2]
[408311992,1773390635861,-5842.24410513,0.00019459,2]
[408311993,1773390635871,-500.0,0.00019494,2]
[408311994,1773390635881,-151.0,0.00019494,2]
[408311995,1773390635891,-168.0,0.00019499,2]
[408311996,1773390635900,-3829.94729659,0.00019522,2]
[408311997,1773390635910,-5842.24410513,0.00019532,2]
[408311998,1773390635919,-1594.23009307,0.00019535,2]
[408311999,1773390635929,-181.08010149,0.00019547,2]
[408312000,1773390635939,-200.0,0.00019547,2]
[408312001,1773390635949,-500.0,0.00019549,2]
[408312002,1773390635959,-151.0,0.00019549,2]
[408312003,1773390635968,-7160.728,0.0001957,2]
[408312004,1773390635979,-271.43121445,0.000196,2]
[408312005,1773390635989,-5842.24410513,0.00019606,2]
[408312006,1773390635999,-3829.94729659,0.00019617,2]
[408312007,1773390636008,-5842.24410513,0.00019679,2]
[408312008,1773390636018,-3829.94729659,0.00019711,2]
[408312009,1773390636028,-5842.24410513,0.00019753,2]
[408312010,1773390636037,-10870.27187389,0.00019768,2]
[408312011,1773390636047,-478.78,0.00019777,2]
[408312012,1773390636057,-2500.0,0.00019778,2]
[408312013,1773390636066,-10870.27187389,0.00019783,2]
[408312014,1773390636076,-10870.27187389,0.00019797,2]
[408312015,1773390636085,-3829.94729659,0.00019806,2]
[408312016,1773390636094,-10870.27187389,0.00019812,2]
[408312017,1773390636104,-5842.24410513,0.00019826,2]
[408312018,1773390636113,-10870.27187389,0.00019827,2]
[408312019,1773390636122,-10870.27187389,0.00019841,2]
[408312020,1773390636132,-10870.27187389,0.00019856,2]
[408312021,1773390636143,-10870.27187389,0.00019871,2]
[408312022,1773390636152,-10870.27187389,0.00019885,2]
[408312023,1773390636162,-500.0,0.00019896,2]
[408312024,1773390636171,-259.24046533,0.000199,7]
[408312025,1773390636181,-438.46234246,0.000199,7]
[408312026,1773390636190,-477.40764874,0.000199,7]
[408312027,1773390636199,-499.3327443,0.000199,7]
[408312028,1773390636209,-360.72513598,0.000199,2]
[408312029,1773390636219,-10870.27187389,0.000199,2]
[408312030,1773390636228,-5842.24410513,0.000199,2]
[408312031,1773390636238,-5000.0,0.000199,2]
[408312032,1773390636248,-3829.94729659,0.000199,2]
[408312033,1773390636258,-160.61307676,0.000199,2]
[408312034,1773390636267,-2245.85478015,0.000199,2]
[408312035,1773390636277,-8503.51819922,0.000199,2]
[408312036,1773390636286,-8043.58887275,0.000199,2]
[408312037,1773390636296,-1500.0,0.00019917,2]
[408312038,1773390636306,-500.0,0.00019917,2]
[408312039,1773390636316,-7589.0,0.00019973,2]
[408312040,1773390636325,-500.0,0.00019973,2]
[408312041,1773390636335,-500.0,0.00019973,2]
[408312042,1773390636344,-500.0,0.00019973,2]
[408312043,1773390636354,-500.0,0.00019973,2]
[408312044,1773390636363,-500.0,0.00019973,2]
[408312045,1773390636373,-419.84618409,0.00019973,2]
[408312046,1773390636382,-151.1911095,0.00019973,2]